lending/lending_fUSD_20241214
["ID","MTS","AMOUNT","RATE_DAILY","PERIOD"]
[345363609,1734195040124,-150.0,0.00018324,2]
[345363610,1734195040133,-150.0,0.00018324,2]
[345363611,1734195040142,-150.0,0.00018329,2]
[345363612,1734195040151,-1500.0,0.00018329,2]
[345363613,1734195040159,-150.0,0.00018331,2]
[345363614,1734195040169,-500.0,0.00018331,2]
[345363615,1734195040178,-150.0,0.00018332,2]
[345363616,1734195040187,-500.0,0.00018332,2]
[345363617,1734195040197,-500.0,0.00018332,2]
[345363618,1734195040207,-150.0,0.00018336,2]
[345363619,1734195040216,-5058.6428,0.0001834,2]
[345363620,1734195040225,-150.0,0.0001834,2]
[345363621,1734195040234,-150.0,0.00018352,2]
[345363622,1734195040243,-150.0,0.00018352,2]
[345363623,1734195040253,-150.0,0.00018357,2]
[345363624,1734195040262,-150.0,0.00018361,2]
[345363625,1734195040272,-150.0,0.00018361,2]
[345363626,1734195040281,-150.0,0.00018362,2]
[345363627,1734195040290,-150.0,0.00018364,2]
[345363628,1734195040299,-386.82210974,0.00018367,2]
[345363629,1734195040308,-150.0,0.00018367,2]
[345363630,1734195040317,-150.0,0.00018368,2]
[345363631,1734195040326,-1500.0,0.00018371,2]
[345363632,1734195040336,-150.0,0.00018372,2]
[345363633,1734195040345,-150.0,0.00018372,2]
[345363634,1734195040354,-150.0,0.00018374,2]
[345363635,1734195040363,-150.0,0.00018377,2]
[345363636,1734195040373,-1018.17,0.0001838,2]
[345363637,1734195040382,-523.48063543,0.0001838,2]
[345363638,1734195040391,-523.48063543,0.0001838,2]
[345363639,1734195040400,-523.48063543,0.0001838,2]
[345363641,1734195040409,-523.48063543,0.0001838,2]
[345363643,1734195040419,-523.48063543,0.0001838,2]
[345363645,1734195040428,-523.48063543,0.0001838,2]
[345363649,1734195040437,-523.48063543,0.0001838,2]
[345363651,1734195040447,-523.48063543,0.0001838,2]
[345363653,1734195040456,-523.48063543,0.0001838,2]
[345363655,1734195040465,-523.48063543,0.0001838,2]
[345363657,1734195040475,-523.48063543,0.0001838,2]
[345363658,1734195040485,-523.48063543,0.0001838,2]
[345363660,1734195040494,-523.48063543,0.0001838,2]
[345363662,1734195040503,-523.48063543,0.0001838,2]
[345363663,1734195040512,-523.48063543,0.0001838,2]
[345363665,1734195040522,-523.48063543,0.0001838,2]
[345363667,1734195040532,-523.48063543,0.0001838,2]
[345363668,1734195040542,-523.48063543,0.0001838,2]
[345363669,1734195040551,-523.48063543,0.0001838,2]
[345363670,1734195040561,-523.48,0.0001838,2]
[345363671,1734195040570,-150.0,0.00018381,2]
[345363672,1734195040579,-150.0,0.00018387,2]
[345363673,1734195040589,-150.0,0.00018389,2]
[345363674,1734195040598,-150.0,0.00018395,2]
[345363675,1734195040608,-1000.0,0.00018396,2]
[345363676,1734195040617,-150.0,0.00018397,2]
[345363677,1734195040626,-150.0,0.00018398,2]
[345363678,1734195040635,-150.0,0.00018402,2]
[345363679,1734195040645,-150.0,0.00018403,2]
[345363680,1734195040655,-150.0,0.00018403,2]
[345363681,1734195040665,-150.0,0.00018404,2]
[345363682,1734195040674,-150.0,0.00018405,2]
[345363683,1734195040683,-150.0,0.00018407,2]
[345363684,1734195040693,-150.0,0.00018409,2]
[345363685,1734195040702,-150.0,0.0001841,2]
[345363686,1734195040712,-150.0,0.0001841,2]
[345363687,1734195040722,-150.0,0.00018412,2]
[345363688,1734195040731,-150.0,0.00018413,2]
[345363689,1734195040741,-150.0,0.00018416,2]
[345363690,1734195040750,-150.0,0.00018419,2]
[345363691,1734195040760,-150.0,0.00018419,2]
[345363692,1734195040770,-150.0,0.0001842,2]
[345363693,1734195040779,-150.0,0.00018422,2]
[345363694,1734195040789,-150.0,0.00018423,2]
[345363695,1734195040799,-150.0,0.00018424,2]
[345363696,1734195040808,-150.0,0.00018424,2]
[345363697,1734195040818,-150.0,0.00018425,2]
[345363698,1734195040939,-150.0,0.00018425,2]
[345363699,1734195040948,-1500.0,0.0001843,2]
[345363700,1734195040958,-150.0,0.00018431,2]
[345363701,1734195040967,-150.0,0.00018433,2]
[345363702,1734195040977,-150.0,0.00018435,2]
[345363703,1734195040986,-150.0,0.00018435,2]
[345363704,1734195040995,-300.0,0.00018439,2]
[345363705,1734195041004,-300.0,0.00018439,2]
[345363706,1734195041013,-300.0,0.00018439,2]
[345363707,1734195041022,-300.0,0.00018439,2]
[345363708,1734195041031,-80000.0,0.0001844,2]
[345363709,1734195041041,-150.0,0.00018442,2]
[345363710,1734195041051,-150.0,0.00018443,2]
[345363711,1734195041060,-1500.0,0.00018443,2]
[345363712,1734195041070,-150.0,0.00018447,2]
[345363713,1734195041079,-150.0,0.0001845,2]
[345363714,1734195041088,-150.0,0.00018452,2]
[345363715,1734195041098,-1500.0,0.00018453,2]
[345363716,1734195041108,-150.0,0.00018454,2]
[345363717,1734195041117,-150.0,0.00018455,2]
[345363718,1734195041127,-150.0,0.00018456,2]
[345363719,1734195041136,-150.0,0.00018457,2]
[345363720,1734195041146,-150.0,0.00018459,2]
[345363721,1734195041155,-300.0,0.00018465,2]
[345363722,1734195041164,-300.0,0.00018465,2]
[345363723,1734195041173,-300.0,0.00018465,2]
[345363724,1734195041183,-150.0,0.00018465,2]
[345363725,1734195041192,-37171.0,0.00018466,2]
[345363726,1734195041201,-58162.0,0.00018466,2]
[345363727,1734195041211,-150.0,0.00018467,2]
[345363728,1734195041221,-150.0,0.00018472,2]
[345363729,1734195041230,-500.0,0.00018473,2]
[345363730,1734195041239,-500.0,0.00018473,2]
[345363731,1734195041248,-500.0,0.00018473,2]
[345363732,1734195041257,-233.16666995,0.00018473,2]
[345363733,1734195041266,-500.0,0.00018473,2]
[345363734,1734195041275,-314.40301345,0.00018473,2]
[345363735,1734195041284,-300.25341394,0.00018473,2]
[345363736,1734195041292,-184.90978399,0.00018473,2]
[345363737,1734195041302,-500.0,0.00018473,2]
[345363738,1734195041311,-500.0,0.00018473,2]
[345363739,1734195041319,-1500.0,0.00018473,2]
[345363740,1734195041329,-300.0,0.00018476,2]
[345363741,1734195041338,-300.0,0.00018476,2]
[345363742,1734195041347,-300.0,0.00018476,2]
[345363743,1734195041357,-150.0,0.00018476,2]
[345363744,1734195041367,-177444.14778375,0.00018477,2]
[345363745,1734195041377,-151.0,0.00018477,2]
[345363746,1734195041387,-151.0,0.00018477,2]
[345363747,1734195041396,-151.0,0.00018477,2]
[345363748,1734195041406,-151.0,0.00018477,2]
[345363749,1734195041415,-151.0,0.00018477,2]
[345363750,1734195041424,-151.0,0.00018477,2]
[345363751,1734195041433,-151.0,0.00018477,2]
[345363752,1734195041442,-151.0,0.00018477,2]
[345363753,1734195041452,-151.0,0.00018477,2]
[345363754,1734195041461,-153.155096,0.00018477,2]
[345363755,1734195041471,-151.0,0.00018477,2]
[345363756,1734195041480,-151.479348,0.00018477,2]
[345363757,1734195041490,-151.0,0.00018477,2]
[345363758,1734195041499,-151.0,0.00018477,2]
[345363759,1734195041508,-151.0,0.00018477,2]
[345363760,1734195041518,-151.0,0.00018477,2]
[345363761,1734195041528,-151.0,0.00018477,2]
[345363762,1734195041537,-151.0,0.00018477,2]
[345363763,1734195041547,-151.0,0.00018477,2]
[345363764,1734195041556,-151.0,0.00018477,2]
[345363765,1734195041565,-151.0,0.00018477,2]
[345363766,1734195041575,-151.0,0.00018477,2]
[345363767,1734195041584,-163.429572,0.00018477,2]
[345363768,1734195041594,-163.429572,0.00018477,2]
[345363769,1734195041603,-279.675293,0.00018477,2]
[345363770,1734195041612,-159.951985,0.00018477,2]
[345363771,1734195041621,-151.0,0.00018477,2]
[345363772,1734195041631,-279.675293,0.00018477,2]
[345363773,1734195041640,-159.951985,0.00018477,2]
[345363774,1734195041649,-151.0,0.00018477,2]
[345363775,1734195041660,-333.220046,0.00018477,2]
[345363776,1734195041669,-333.220046,0.00018477,2]
[345363777,1734195041678,-151.0,0.00018477,2]
[345363778,1734195041687,-151.0,0.00018477,2]
[345363779,1734195041696,-151.0,0.00018477,2]
[345363780,1734195041705,-151.0,0.00018477,2]
[345363781,1734195041714,-151.0,0.00018477,2]
[345363782,1734195041723,-151.0,0.00018477,2]
[345363783,1734195041733,-151.0,0.00018477,2]
[345363784,1734195041742,-235.496238,0.00018477,2]
[345363785,1734195041751,-235.496238,0.00018477,2]
[345363786,1734195041760,-151.0,0.00018477,2]
[345363787,1734195041770,-151.0,0.00018477,2]
[345363788,1734195041779,-225.939364,0.00018477,2]
[345363789,1734195041788,-151.0,0.00018477,2]
[345363790,1734195041797,-553.811591,0.00018477,2]
[345363791,1734195041806,-225.939364,0.00018477,2]
[345363792,1734195041816,-553.811591,0.00018477,2]
[345363793,1734195041825,-151.0,0.00018477,2]
[345363794,1734195041835,-151.0,0.00018477,2]
[345363795,1734195041845,-151.0,0.00018477,2]
[345363796,1734195041854,-180.900678,0.00018477,2]
[345363797,1734195041864,-151.0,0.00018477,2]
[345363798,1734195041874,-151.0,0.00018477,2]
[345363799,1734195041883,-151.0,0.00018477,2]
[345363800,1734195041893,-151.0,0.00018477,2]
[345363801,1734195041903,-151.0,0.00018477,2]
[345363802,1734195041914,-151.0,0.00018477,2]
[345363803,1734195041924,-191.734639,0.00018477,2]
[345363804,1734195041934,-191.734639,0.00018477,2]
[345363805,1734195041944,-690.374744,0.00018477,2]
[345363806,1734195041953,-151.0,0.00018477,2]
[345363807,1734195041963,-151.0,0.00018477,2]
[345363808,1734195041983,-151.0,0.00018477,2]
[345363809,1734195041992,-151.0,0.00018477,2]
[345363810,1734195042001,-151.0,0.00018477,2]
[345363811,1734195042011,-156.677498,0.00018477,2]
[345363812,1734195042023,-156.677498,0.00018477,2]
[345363813,1734195042032,-151.0,0.00018477,2]
[345363814,1734195042041,-546.917253,0.00018477,2]
[345363815,1734195042050,-546.917253,0.00018477,2]
[345363816,1734195042061,-151.0,0.00018477,2]
[345363817,1734195042071,-151.0,0.00018477,2]
[345363818,1734195042080,-151.0,0.00018477,2]
[345363819,1734195042090,-151.0,0.00018477,2]
[345363820,1734195042099,-151.0,0.00018477,2]
[345363821,1734195042108,-283.858602,0.00018477,2]
[345363822,1734195042117,-266.350382,0.00018477,2]
[345363823,1734195042127,-151.0,0.00018477,2]
[345363824,1734195042137,-266.350382,0.00018477,2]
[345363825,1734195042146,-283.858602,0.00018477,2]
[345363826,1734195042155,-300.0,0.00018479,2]
[345363827,1734195042165,-300.0,0.00018479,2]
[345363828,1734195042175,-150.0,0.00018479,2]
[345363829,1734195042184,-300.0,0.00018479,2]
[345363830,1734195042194,-989.42,0.0001848,2]
[345363831,1734195042203,-1015.87,0.0001848,2]
[345363832,1734195042212,-999.15,0.0001848,2]
[345363833,1734195042222,-4701559.99464817,0.0001848,2]
[345363834,1734195042231,-151.0,0.0001848,2]
[345363835,1734195042241,-151.0,0.0001848,2]
[345363836,1734195042250,-151.0,0.0001848,2]
[345363837,1734195042260,-151.0,0.0001848,2]
[345363838,1734195042269,-151.0,0.0001848,2]
[345363839,1734195042278,-158.824376,0.0001848,2]
[345363840,1734195042287,-151.0,0.0001848,2]
[345363841,1734195042297,-151.0,0.0001848,2]
[345363842,1734195042307,-151.0,0.0001848,2]
[345363843,1734195042316,-151.0,0.0001848,2]
[345363844,1734195042325,-151.0,0.0001848,2]
[345363845,1734195042335,-151.0,0.0001848,2]
[345363846,1734195042344,-151.0,0.0001848,2]
[345363847,1734195042353,-151.0,0.0001848,2]
[345363848,1734195042363,-151.0,0.0001848,2]
[345363849,1734195042373,-151.0,0.0001848,2]
[345363850,1734195042382,-151.0,0.0001848,2]
[345363851,1734195042391,-151.0,0.0001848,2]
[345363852,1734195042401,-151.0,0.0001848,2]
[345363853,1734195042409,-163.429572,0.0001848,2]
[345363854,1734195042419,-163.429572,0.0001848,2]
[345363855,1734195042428,-279.675293,0.0001848,2]
[345363856,1734195042437,-159.951985,0.0001848,2]
[345363857,1734195042446,-151.0,0.0001848,2]
[345363858,1734195042456,-279.675293,0.0001848,2]
[345363859,1734195042465,-159.951985,0.0001848,2]
[345363860,1734195042495,-151.0,0.0001848,2]
[345363861,1734195042504,-333.220046,0.0001848,2]
[345363862,1734195042513,-333.220046,0.0001848,2]
[345363863,1734195042523,-196.012375,0.0001848,2]
[345363864,1734195042533,-151.0,0.0001848,2]
[345363865,1734195042542,-151.0,0.0001848,2]
[345363866,1734195042551,-151.0,0.0001848,2]
[345363867,1734195042562,-151.0,0.0001848,2]
[345363868,1734195042572,-151.0,0.0001848,2]
[345363869,1734195042581,-151.0,0.0001848,2]
[345363870,1734195042590,-235.496238,0.0001848,2]
[345363871,1734195042599,-235.496238,0.0001848,2]
[345363872,1734195042609,-151.0,0.0001848,2]
[345363873,1734195042619,-203.355271,0.0001848,2]
[345363874,1734195042628,-225.939364,0.0001848,2]
[345363875,1734195042638,-151.0,0.0001848,2]
[345363876,1734195042647,-553.811591,0.0001848,2]
[345363877,1734195042656,-225.939364,0.0001848,2]
[345363878,1734195042665,-553.811591,0.0001848,2]
[345363879,1734195042674,-151.0,0.0001848,2]
[345363880,1734195042683,-151.0,0.0001848,2]
[345363881,1734195042692,-151.0,0.0001848,2]
[345363882,1734195042701,-151.0,0.0001848,2]
[345363883,1734195042710,-151.0,0.0001848,2]
[345363884,1734195042720,-151.0,0.0001848,2]
[345363885,1734195042730,-151.0,0.0001848,2]
[345363886,1734195042739,-151.0,0.0001848,2]
[345363887,1734195042749,-151.0,0.0001848,2]
[345363888,1734195042758,-191.734639,0.0001848,2]
[345363889,1734195042767,-191.734639,0.0001848,2]
[345363890,1734195042776,-690.374744,0.0001848,2]
[345363891,1734195042785,-151.0,0.0001848,2]
[345363892,1734195042795,-151.0,0.0001848,2]
[345363893,1734195042805,-151.0,0.0001848,2]
[345363894,1734195042814,-151.0,0.0001848,2]
[345363895,1734195042823,-151.0,0.0001848,2]
[345363896,1734195042832,-156.677498,0.0001848,2]
[345363897,1734195042842,-156.677498,0.0001848,2]
[345363898,1734195042851,-151.0,0.0001848,2]
[345363899,1734195042861,-546.917253,0.0001848,2]
[345363900,1734195042869,-546.917253,0.0001848,2]
[345363901,1734195042879,-151.0,0.0001848,2]
[345363902,1734195042888,-301.208435,0.0001848,2]
[345363904,1734195042898,-151.0,0.0001848,2]
[345363906,1734195042909,-151.0,0.0001848,2]
[345363910,1734195043007,-208.489137,0.0001848,2]
[345363911,1734195043030,-283.858602,0.0001848,2]
[345363912,1734195043042,-266.350382,0.0001848,2]
[345363913,1734195043052,-151.0,0.0001848,2]
[345363914,1734195043060,-266.350382,0.0001848,2]
[345363915,1734195043070,-283.858602,0.0001848,2]
[345363916,1734195043080,-10332.9333716,0.00018487,2]
[345363917,1734195043089,-9782.2890997,0.00018487,2]
[345363918,1734195043099,-1578.03566463,0.000185,2]
[345363919,1734195043109,-1357.07,0.00018589,2]
[345363920,1734195043119,-500.0,0.0001861,2]
[345363921,1734195043128,-1152.0,0.00018802,2]
[345363922,1734195043137,-1183.4,0.00018832,2]
[345363923,1734195043147,-492.72550515,0.000189,2]
[345363924,1734195043156,-492.7255051,0.000189,2]
[345363925,1734195043165,-934.25,0.00018971,2]
[345363926,1734195043174,-492.7255051,0.00018984,2]
[345363927,1734195043184,-1000.000001,0.00019,2]
[345363928,1734195043193,-13652.24288599,0.00019,2]
[345363929,1734195043202,-500.0,0.00019,2]
[345363930,1734195043212,-600.0,0.00019,2]
[345363931,1734195043221,-1092.70402534,0.00019021,2]
[345363932,1734195043230,-1000.0,0.00019021,2]
[345363933,1734195043240,-1000.0,0.00019021,2]
[345363934,1734195043250,-1000.0,0.00019021,2]
[345363935,1734195043259,-500.44414763,0.00019021,2]
[345363936,1734195043268,-592.8,0.00019036,2]
[345363937,1734195043277,-150.0,0.0001906,2]
[345363938,1734195043287,-161.01,0.00019176,2]
[345363939,1734195043296,-150.0,0.00019177,2]
[345363940,1734195043306,-620.62,0.00019178,2]
[345363941,1734195043315,-620.62,0.00019178,2]
[345363942,1734195043324,-620.62,0.00019178,2]
[345363943,1734195043334,-620.62,0.00019178,2]
[345363944,1734195043343,-620.62,0.00019178,2]
[345363945,1734195043353,-620.62,0.00019178,2]
[345363946,1734195043362,-620.62,0.00019178,2]
[345363947,1734195043371,-620.62,0.00019178,2]
[345363948,1734195043381,-620.62,0.00019178,2]
[345363949,1734195043390,-620.62,0.00019178,2]
[345363950,1734195043398,-620.62,0.00019178,2]
[345363951,1734195043407,-620.62,0.00019178,2]
[345363952,1734195043417,-620.62,0.00019178,2]
[345363953,1734195043426,-620.62,0.00019178,2]
[345363954,1734195043435,-620.62,0.00019178,2]
[345363955,1734195043444,-620.62,0.00019178,2]
[345363956,1734195043453,-620.62,0.00019178,2]
[345363957,1734195043462,-620.62,0.00019178,2]
[345363958,1734195043471,-620.62,0.00019178,2]
[345363959,1734195043480,-620.62,0.00019178,2]
[345363960,1734195043493,-620.62,0.00019178,2]
[345363961,1734195043502,-620.62,0.00019178,2]
[345363962,1734195043512,-620.62,0.00019178,2]
[345363963,1734195043521,-620.77822716,0.00019178,2]
[345363964,1734195043530,-500.0,0.0001924,2]
[345363965,1734195043539,-1056.0,0.00019257,2]
[345363966,1734195043548,-492.7255051,0.00019287,2]
[345363967,1734195043558,-150.0,0.00019314,2]
[345363968,1734195043567,-607.2,0.00019347,2]
[345363969,1734195043577,-151.0,0.00019375,2]
[345363970,1734195043587,-150.0,0.00019451,2]
[345363971,1734195043595,-1183.4,0.00019481,2]
[345363972,1734195043604,-3498.0,0.000195,2]
[345363973,1734195043613,-164.2,0.00019503,2]
[345363974,1734195043622,-150.0,0.00019588,2]
[345363975,1734195043631,-492.7255051,0.00019589,2]
[345363976,1734195043640,-1000.0,0.00019589,2]
[345363977,1734195043650,-1000.0,0.00019589,2]
[345363978,1734195043659,-1000.0,0.00019589,2]
[345363979,1734195043668,-1000.0,0.00019589,2]
[345363980,1734195043676,-1000.0,0.00019589,2]
[345363981,1734195043686,-1000.0,0.00019589,2]
[345363982,1734195043695,-1000.0,0.00019589,2]
[345363983,1734195043704,-1000.0,0.00019589,2]
[345363984,1734195043714,-1000.0,0.00019589,2]
[345363985,1734195043723,-1000.0,0.00019589,2]
[345363986,1734195043733,-1476.0,0.000196,2]
[345363987,1734195043743,-1000.0,0.000196,2]
[345363989,1734195043752,-1000.0,0.000196,2]
[345363990,1734195043761,-153.0,0.00019601,2]
[345363991,1734195043771,-153.0,0.00019601,2]
[345363992,1734195043780,-153.0,0.00019601,2]
[345363993,1734195043790,-153.0,0.00019601,2]
[345363994,1734195043799,-153.0,0.00019601,2]
[345363995,1734195043809,-153.0,0.00019601,2]
[345363996,1734195043818,-153.0,0.00019601,2]
[345363997,1734195043827,-153.0,0.00019601,2]
[345363998,1734195043836,-153.0,0.00019601,2]
[345363999,1734195043845,-153.0,0.00019601,2]
[345364000,1734195043855,-153.0,0.00019601,2]
[345364001,1734195043864,-153.0,0.00019601,2]
[345364002,1734195043873,-153.0,0.00019601,2]
[345364003,1734195043882,-153.0,0.00019601,2]
[345364004,1734195043892,-153.0,0.00019601,2]
[345364005,1734195043901,-153.0,0.00019601,2]
[345364006,1734195043911,-153.0,0.00019601,2]
[345364007,1734195043920,-153.0,0.00019601,2]
[345364008,1734195043930,-153.0,0.00019601,2]
[345364009,1734195043939,-153.0,0.00019601,2]
[345364010,1734195043948,-153.0,0.00019601,2]
[345364011,1734195043957,-153.0,0.00019601,2]
[345364012,1734195043966,-153.0,0.00019601,2]
[345364013,1734195043976,-153.0,0.00019601,2]
[345364014,1734195043985,-153.0,0.00019601,2]
[345364015,1734195043994,-153.0,0.00019601,2]
[345364016,1734195044003,-153.0,0.00019601,2]
[345364017,1734195044013,-153.0,0.00019601,2]
[345364018,1734195044033,-153.0,0.00019601,2]
[345364019,1734195044042,-153.0,0.00019601,2]
[345364020,1734195044051,-153.0,0.00019601,2]
[345364021,1734195044060,-1629.0,0.000197,2]
[345364022,1734195044074,-150.0,0.00019725,2]
[345364023,1734195044084,-999.0,0.00019726,2]
[345364024,1734195044093,-386.82210974,0.00019733,2]
[345364025,1734195044103,-473.79450042,0.00019781,7]
[345364026,1734195044112,-3041.35901994,0.000198,4]
[345364027,1734195044122,-500.0,0.0001986,2]
[345364028,1734195044131,-150.0,0.00019862,2]
[345364029,1734195044140,-201.0,0.0001988,2]
[345364030,1734195044150,-492.7255051,0.00019891,2]
[345364031,1734195044159,-769.16,0.00019928,2]
[345364032,1734195044169,-769.16,0.00019928,2]
[345364033,1734195044178,-769.16,0.00019928,2]
[345364034,1734195044188,-436.17,0.00019928,2]
[345364035,1734195044197,-435.83,0.0001993,2]
[345364036,1734195044206,-282.26,0.0001993,2]
[345364037,1734195044215,-300.0,0.00019999,2]
[345364038,1734195044224,-300.0,0.00019999,2]
[345364039,1734195044234,-300.0,0.00019999,2]
[345364040,1734195044243,-150.0,0.00019999,2]
[345364041,1734195044252,-10000.0,0.0002,7]
[345364042,1734195044261,-1000.0,0.0002,20]
[345364043,1734195044271,-20000.0,0.0002,2]
[345364044,1734195044280,-500.0,0.0002,2]
[345364045,1734195044289,-500.0,0.0002,2]
[345364046,1734195044298,-500.0,0.0002,2]
[345364047,1734195044308,-6500.0,0.0002,2]
[345364048,1734195044317,-297.08475488,0.0002,2]
[345364049,1734195044326,-31062.33614606,0.0002,2]
[345364050,1734195044335,-3816.94572878,0.0002,2]
[345364051,1734195044345,-3950.0,0.0002,2]
[345364052,1734195044354,-1234.86402361,0.0002,2]
[345364053,1734195044363,-2049.48246796,0.0002,2]
[345364054,1734195044373,-810.97069993,0.0002,2]
[345364055,1734195044382,-3000.01,0.0002,2]
[345364056,1734195044391,-210845.57712489,0.0002,4]
[345364057,1734195044400,-1133.0,0.0002,60]
[345364058,1734195044409,-151.0,0.0002,2]
[345364059,1734195044418,-1500.0,0.0002,2]
[345364060,1734195044427,-151.0,0.0002,2]
[345364061,1734195044436,-151.0,0.0002,2]
[345364062,1734195044445,-151.0,0.0002,2]
[345364063,1734195044454,-151.0,0.0002,2]
[345364064,1734195044463,-151.0,0.0002,2]
[345364065,1734195044472,-151.0,0.0002,2]
[345364066,1734195044481,-151.0,0.0002,2]
[345364067,1734195044494,-5000.0,0.0002,4]
[345364068,1734195044503,-151.267451,0.0002,2]
[345364069,1734195044511,-151.0,0.0002,2]
[345364070,1734195044521,-151.0,0.0002,2]
[345364071,1734195044529,-151.0,0.0002,2]
[345364072,1734195044538,-151.0,0.0002,2]
[345364073,1734195044548,-151.0,0.0002,2]
[345364074,1734195044557,-151.0,0.0002,2]
[345364075,1734195044566,-267.245025,0.0002,2]
[345364076,1734195044575,-151.0,0.0002,2]
[345364077,1734195044583,-151.0,0.0002,2]
[345364078,1734195044592,-163.429572,0.0002,2]
[345364079,1734195044601,-163.429572,0.0002,2]
[345364080,1734195044610,-279.675293,0.0002,2]
[345364081,1734195044619,-159.951985,0.0002,2]
[345364082,1734195044628,-151.0,0.0002,2]
[345364083,1734195044637,-279.675293,0.0002,2]
[345364084,1734195044646,-159.951985,0.0002,2]
[345364085,1734195044655,-151.0,0.0002,2]
[345364086,1734195044663,-333.220046,0.0002,2]
[345364087,1734195044672,-333.220046,0.0002,2]
[345364088,1734195044681,-151.0,0.0002,2]
[345364089,1734195044690,-151.0,0.0002,2]
[345364090,1734195044699,-151.0,0.0002,2]
[345364091,1734195044708,-151.0,0.0002,2]
[345364092,1734195044717,-151.0,0.0002,2]
[345364093,1734195044726,-200.620092,0.0002,2]
[345364094,1734195044735,-235.496238,0.0002,2]
[345364095,1734195044744,-235.496238,0.0002,2]
[345364096,1734195044753,-151.0,0.0002,2]
[345364097,1734195044762,-225.939364,0.0002,2]
[345364098,1734195044771,-151.0,0.0002,2]
[345364099,1734195044780,-553.811591,0.0002,2]
[345364100,1734195044789,-225.939364,0.0002,2]
[345364101,1734195044798,-553.811591,0.0002,2]
[345364102,1734195044807,-151.0,0.0002,2]
[345364103,1734195044904,-151.0,0.0002,2]
[345364104,1734195044913,-151.0,0.0002,2]
[345364105,1734195044923,-151.0,0.0002,2]
[345364106,1734195044932,-244.504803,0.0002,2]
[345364107,1734195044941,-151.0,0.0002,2]
[345364108,1734195044950,-151.0,0.0002,2]
[345364109,1734195044959,-295.341304,0.0002,2]
[345364110,1734195044968,-151.0,0.0002,2]
[345364111,1734195044977,-191.734639,0.0002,2]
[345364112,1734195044986,-191.734639,0.0002,2]
[345364113,1734195044995,-690.374744,0.0002,2]
[345364114,1734195045004,-151.0,0.0002,2]
[345364115,1734195045013,-151.0,0.0002,2]
[345364116,1734195045023,-151.0,0.0002,2]
[345364117,1734195045031,-151.0,0.0002,2]
[345364118,1734195045040,-151.0,0.0002,2]
[345364119,1734195045049,-156.677498,0.0002,2]
[345364120,1734195045058,-156.677498,0.0002,2]
[345364121,1734195045068,-236.186764,0.0002,2]
[345364122,1734195045077,-546.917253,0.0002,2]
[345364123,1734195045086,-546.917253,0.0002,2]
[345364124,1734195045095,-151.0,0.0002,2]
[345364125,1734195045104,-151.0,0.0002,2]
[345364126,1734195045113,-151.0,0.0002,2]
[345364127,1734195045123,-266.350382,0.0002,2]
[345364128,1734195045132,-283.858602,0.0002,2]